fUSD/lending_fUSD_20240902
["ID","MTS","AMOUNT","RATE_DAILY","PERIOD"]
[336904268,1725238256087,-830.39,0.00022477,2]
[336904269,1725238256097,-876.54,0.00022477,2]
[336904270,1725238256106,-500.0,0.00022477,2]
[336904271,1725238256116,-500.0,0.00022477,2]
[336904272,1725238256126,-926.29,0.00022477,2]
[336904273,1725238256135,-500.0,0.00022477,2]
[336904274,1725238256145,-860.71,0.00022477,2]
[336904275,1725238256155,-629.85,0.00022477,2]
[336904276,1725238256165,-582.14,0.00022477,2]
[336904277,1725238256175,-500.0,0.00022477,2]
[336904278,1725238256184,-500.0,0.00022477,2]
[336904279,1725238256194,-509.85,0.00022477,2]
[336904280,1725238256203,-500.0,0.00022477,2]
[336904281,1725238256213,-1114.7,0.00022477,2]
[336904282,1725238256222,-579.55397452,0.00022477,2]
[336904283,1725238256232,-500.0,0.00022477,2]
[336904285,1725238256242,-500.0,0.00022477,2]
[336904287,1725238256251,-500.0,0.00022477,2]
[336904290,1725238256261,-500.0,0.00022477,2]
[336904292,1725238256271,-2598.05,0.00022477,2]
[336904316,1725238256488,-619.99,0.00022477,2]
[336904318,1725238256499,-611.98,0.00022477,2]
[336904320,1725238256510,-500.0,0.00022477,2]
[336904322,1725238256519,-612.32,0.00022477,2]
[336904324,1725238256528,-949.43,0.00022477,2]
[336904326,1725238256538,-995.37,0.00022477,2]
[336904328,1725238256547,-500.0,0.00022477,2]
[336904330,1725238256556,-500.0,0.00022477,2]
[336904332,1725238256566,-797.17,0.00022477,2]
[336904334,1725238256575,-500.0,0.00022477,2]
[336904336,1725238256584,-694.0,0.00022477,2]
[336904338,1725238256593,-680.53,0.00022477,2]
[336904340,1725238256602,-4699.84,0.00022477,2]
[336904342,1725238256616,-500.0,0.00022477,2]
[336904344,1725238256625,-578.11,0.00022477,2]
[336904346,1725238256634,-500.0,0.00022477,2]
[336904348,1725238256644,-548.38605506,0.00022477,2]
[336904350,1725238256653,-1135.36,0.00022477,2]
[336904352,1725238256662,-500.0,0.00022477,2]
[336904354,1725238256672,-843.51,0.00022477,2]
[336904356,1725238256681,-884.08,0.00022477,2]
[336904358,1725238256692,-500.0,0.00022477,2]
[336904360,1725238256701,-1266.11,0.00022477,2]
[336904362,1725238256710,-500.0,0.00022477,2]
[336904364,1725238256719,-2007.89,0.00022477,2]
[336904366,1725238256728,-500.0,0.00022477,2]
[336904368,1725238256739,-500.0,0.00022477,2]
[336904370,1725238256748,-500.0,0.00022477,2]
[336904371,1725238256759,-500.0,0.00022477,2]
[336904373,1725238256768,-500.0,0.00022477,2]
[336904375,1725238256778,-860.2,0.00022477,2]
[336904377,1725238256787,-636.3,0.00022477,2]
[336904379,1725238256797,-921.0,0.00022477,2]
[336904381,1725238256806,-647.06,0.00022477,2]
[336904383,1725238256815,-940.54,0.00022477,2]
[336904385,1725238256824,-949.83,0.00022477,2]
[336904387,1725238256834,-1030.0,0.00022477,2]
[336904389,1725238256843,-500.0,0.00022477,2]
[336904391,1725238256851,-504.57,0.00022477,2]
[336904393,1725238256861,-500.0,0.00022477,2]
[336904395,1725238256870,-500.0,0.00022477,2]
[336904397,1725238256879,-736.76,0.00022477,2]
[336904399,1725238256888,-981.33,0.00022477,2]
[336904401,1725238256897,-795.58,0.00022477,2]
[336904403,1725238256907,-840.26,0.00022477,2]
[336904405,1725238256916,-690.32,0.00022477,2]
[336904407,1725238256925,-1161.97,0.00022477,2]
[336904409,1725238256934,-500.0,0.00022477,2]
[336904411,1725238256943,-1422.92,0.00022477,2]
[336904412,1725238256952,-500.0,0.00022477,2]
[336904414,1725238256962,-500.0,0.00022477,2]
[336904416,1725238256971,-953.27,0.00022477,2]
[336904418,1725238256981,-506.4,0.00022477,2]
[336904420,1725238256991,-914.86,0.00022477,2]
[336904422,1725238257000,-538.26,0.00022477,2]
[336904424,1725238257009,-734.6,0.00022477,2]
[336904426,1725238257018,-500.0,0.00022477,2]
[336904427,1725238257027,-500.0,0.00022477,2]
[336904429,1725238257036,-500.0,0.00022477,2]
[336904431,1725238257045,-625.81,0.00022477,2]
[336904433,1725238257054,-500.0,0.00022477,2]
[336904435,1725238257062,-500.0,0.00022477,2]
[336904437,1725238257071,-802.49,0.00022477,2]
[336904439,1725238257080,-918.29,0.00022477,2]
[336904440,1725238257090,-910.7,0.00022477,2]
[336904442,1725238257099,-2278.46,0.00022477,2]
[336904444,1725238257108,-860.96,0.00022477,2]
[336904446,1725238257117,-500.0,0.00022477,2]
[336904448,1725238257127,-1342.74,0.00022477,2]
[336904450,1725238257136,-449.3663077,0.00022477,2]
[336904452,1725238257145,-500.0,0.00022477,2]
[336904454,1725238257154,-880.93,0.00022477,2]
[336904456,1725238257164,-500.0,0.00022477,2]
[336904458,1725238257173,-430.87740434,0.00022477,2]
[336904460,1725238257182,-678.86,0.00022477,2]
[336904462,1725238257191,-1658.22,0.00022477,2]
[336904464,1725238257200,-500.0,0.00022477,2]
[336904466,1725238257209,-504.21,0.00022477,2]
[336904468,1725238257218,-500.0,0.00022477,2]
[336904470,1725238257227,-999.95,0.00022477,2]
[336904472,1725238257237,-712.21,0.00022477,2]
[336904474,1725238257246,-975.7,0.00022477,2]
[336904476,1725238257255,-520.93,0.00022477,2]
[336904478,1725238257264,-554.54,0.00022477,2]
[336904480,1725238257274,-500.0,0.00022477,2]
[336904481,1725238257283,-500.0,0.00022477,2]
[336904483,1725238257292,-629.32,0.00022477,2]
[336904485,1725238257302,-999.0,0.00022477,2]
[336904487,1725238257311,-500.0,0.00022477,2]
[336904489,1725238257320,-906.01,0.00022477,2]
[336904491,1725238257330,-500.0,0.00022477,2]
[336904493,1725238257339,-537.46,0.00022477,2]
[336904495,1725238257348,-500.0,0.00022477,2]
[336904497,1725238257357,-500.0,0.00022477,2]
[336904499,1725238257367,-680.12,0.00022477,2]
[336904501,1725238257378,-1104.1,0.00022477,2]
[336904503,1725238257387,-1140.92,0.00022477,2]
[336904505,1725238257396,-1670.02,0.00022477,2]
[336904507,1725238257406,-736.18,0.00022477,2]
[336904509,1725238257415,-626.92,0.00022477,2]
[336904511,1725238257425,-512.15,0.00022477,2]
[336904514,1725238257434,-500.0,0.00022477,2]
[336904515,1725238257444,-500.0,0.00022477,2]
[336904517,1725238257454,-1406.25,0.00022477,2]
[336904519,1725238257463,-500.0,0.00022477,2]
[336904521,1725238257473,-583.89,0.00022477,2]
[336904524,1725238257483,-841.04,0.00022477,2]
[336904525,1725238257492,-500.0,0.00022477,2]
[336904527,1725238257502,-227.44231855,0.00022477,2]
[336904529,1725238257511,-1300.02,0.00022477,2]
[336904531,1725238257521,-500.0,0.00022477,2]
[336904533,1725238257530,-500.0,0.00022477,2]
[336904536,1725238257540,-1389.07,0.00022477,2]
[336904538,1725238257549,-500.0,0.00022477,2]
[336904540,1725238257559,-500.0,0.00022477,2]
[336904542,1725238257569,-778.12,0.00022477,2]
[336904544,1725238257578,-500.0,0.00022477,2]
[336904546,1725238257588,-500.0,0.00022477,2]
[336904548,1725238257597,-500.0,0.00022477,2]
[336904549,1725238257611,-897.44,0.00022477,2]
[336904551,1725238257620,-500.0,0.00022477,2]
[336904553,1725238257631,-500.0,0.00022477,2]
[336904555,1725238257641,-1015.19,0.00022477,2]
[336904557,1725238257652,-869.32,0.00022477,2]
[336904559,1725238257662,-1575.13,0.00022477,2]
[336904561,1725238257673,-1348.81,0.00022477,2]
[336904563,1725238257682,-783.04,0.00022477,2]
[336904565,1725238257694,-500.0,0.00022477,2]
[336904567,1725238257704,-619.64,0.00022477,2]
[336904569,1725238257713,-500.0,0.00022477,2]
[336904571,1725238257723,-852.63,0.00022477,2]
[336904573,1725238257732,-982.17,0.00022477,2]
[336904575,1725238257742,-182.14742431,0.00022477,2]
[336904577,1725238257752,-1643.46,0.00022477,2]
[336904579,1725238257761,-500.0,0.00022477,2]
[336904581,1725238257771,-500.0,0.00022477,2]
[336904583,1725238257781,-904.14,0.00022477,2]
[336904585,1725238257791,-500.0,0.00022477,2]
[336904587,1725238257801,-1073.63,0.00022477,2]
[336904589,1725238257811,-683.57,0.00022477,2]
[336904591,1725238257821,-928.96,0.00022477,2]
[336904593,1725238257830,-524.66,0.00022477,2]
[336904595,1725238257841,-500.0,0.00022477,2]
[336904597,1725238257850,-929.64,0.00022477,2]
[336904599,1725238257860,-954.72,0.00022477,2]
[336904601,1725238257869,-500.0,0.00022477,2]
[336904603,1725238257880,-500.0,0.00022477,2]
[336904605,1725238257890,-701.68,0.00022477,2]
[336904607,1725238257899,-1531.74,0.00022477,2]
[336904609,1725238257909,-910.3,0.00022477,2]
[336904611,1725238257918,-594.75082688,0.00022477,2]
[336904613,1725238257927,-500.0,0.00022477,2]
[336904615,1725238257937,-738.04,0.00022477,2]
[336904617,1725238257947,-500.0,0.00022477,2]
[336904618,1725238257956,-500.0,0.00022477,2]
[336904620,1725238257965,-858.97,0.00022477,2]
[336904622,1725238257975,-500.0,0.00022477,2]
[336904624,1725238257985,-922.06,0.00022477,2]
[336904626,1725238257995,-1354.06,0.00022477,2]
[336904628,1725238258005,-500.0,0.00022477,2]
[336904630,1725238258015,-500.0,0.00022477,2]
[336904632,1725238258025,-1420.96,0.00022477,2]
[336904634,1725238258035,-528.89,0.00022477,2]
[336904637,1725238258045,-500.0,0.00022477,2]
[336904639,1725238258055,-695.75,0.00022477,2]
[336904641,1725238258065,-909.5,0.00022477,2]
[336904643,1725238258075,-1178.56,0.00022477,2]
[336904645,1725238258085,-500.0,0.00022477,2]
[336904647,1725238258095,-592.75,0.00022477,2]
[336904649,1725238258106,-1129.45,0.00022477,2]
[336904651,1725238258117,-959.2,0.00022477,2]
[336904653,1725238258126,-897.58,0.00022477,2]
[336904655,1725238258136,-1878.34,0.00022477,2]
[336904657,1725238258145,-500.0,0.00022477,2]
[336904659,1725238258155,-500.0,0.00022477,2]
[336904661,1725238258165,-1121.97,0.00022477,2]
[336904663,1725238258175,-500.0,0.00022477,2]
[336904665,1725238258185,-846.69,0.00022477,2]
[336904667,1725238258194,-613.58,0.00022477,2]
[336904669,1725238258204,-1089.57,0.00022477,2]
[336904671,1725238258214,-668.62,0.00022477,2]
[336904673,1725238258224,-500.0,0.00022477,2]
[336904674,1725238258234,-500.0,0.00022477,2]
[336904677,1725238258244,-577.68,0.00022477,2]
[336904679,1725238258254,-544.18,0.00022477,2]
[336904681,1725238258264,-500.0,0.00022477,2]
[336904683,1725238258273,-500.0,0.00022477,2]
[336904685,1725238258284,-500.0,0.00022477,2]
[336904687,1725238258294,-500.0,0.00022477,2]
[336904689,1725238258303,-500.0,0.00022477,2]
[336904690,1725238258313,-500.0,0.00022477,2]
[336904692,1725238258323,-946.88,0.00022477,2]
[336904694,1725238258332,-500.0,0.00022477,2]
[336904696,1725238258341,-500.0,0.00022477,2]
[336904698,1725238258351,-1632.33,0.00022477,2]
[336904700,1725238258360,-500.0,0.00022477,2]
[336904702,1725238258370,-929.11,0.00022477,2]
[336904704,1725238258379,-589.63,0.00022477,2]
[336904706,1725238258389,-500.0,0.00022477,2]
[336904708,1725238258398,-500.0,0.00022477,2]
[336904710,1725238258408,-1159.93,0.00022477,2]
[336904712,1725238258418,-500.0,0.00022477,2]
[336904714,1725238258427,-500.0,0.00022477,2]
[336904716,1725238258437,-500.0,0.00022477,2]
[336904718,1725238258446,-500.0,0.00022477,2]
[336904720,1725238258455,-3360.86,0.00022477,2]
[336904722,1725238258465,-500.0,0.00022477,2]
[336904724,1725238258475,-677.74,0.00022477,2]
[336904726,1725238258485,-536.55,0.00022477,2]
[336904728,1725238258495,-500.0,0.00022477,2]
[336904730,1725238258504,-500.0,0.00022477,2]
[336904732,1725238258514,-500.0,0.00022477,2]
[336904734,1725238258523,-635.15,0.00022477,2]
[336904736,1725238258532,-345.20440055,0.00022477,2]
[336904738,1725238258542,-744.7,0.00022477,2]
[336904740,1725238258551,-500.0,0.00022477,2]
[336904742,1725238258560,-2325.9,0.00022477,2]
[336904744,1725238258569,-287.22,0.00022477,2]
[336904746,1725238258579,-500.0,0.00022477,2]
[336904748,1725238258588,-1035.8,0.00022477,2]
[336904750,1725238258597,-500.0,0.00022477,2]
[336904752,1725238258608,-2163.22,0.00022477,2]
[336904753,1725238258618,-2505.28,0.00022477,2]
[336904754,1725238258628,-824.08,0.00022477,2]
[336904755,1725238258637,-1738.59,0.00022477,2]
[336904756,1725238258647,-500.0,0.00022477,2]
[336904757,1725238258656,-957.56,0.00022477,2]
[336904759,1725238258665,-500.0,0.00022477,2]
[336904761,1725238258674,-152.359477,0.00022477,7]
[336904763,1725238258683,-1208.37,0.00022477,2]
[336904765,1725238258693,-500.0,0.00022477,2]
[336904767,1725238258703,-500.0,0.00022477,2]
[336904769,1725238258713,-654.85,0.00022477,2]
[336904771,1725238258724,-500.0,0.00022477,2]
[336904773,1725238258734,-1559.86,0.00022477,2]
[336904775,1725238258744,-624.26,0.00022477,2]
[336904784,1725238258826,-888.12,0.00022477,2]
[336904786,1725238258836,-512.85,0.00022477,2]
[336904788,1725238258846,-726.58,0.00022477,2]
[336904790,1725238258855,-500.0,0.00022477,2]
[336904792,1725238258864,-500.0,0.00022477,2]
[336904794,1725238258873,-1930.66,0.00022477,2]
[336904796,1725238258882,-1030.59,0.00022477,2]
[336904798,1725238258891,-1014.2,0.00022477,2]
[336904800,1725238258900,-955.91,0.00022477,2]
[336904802,1725238258909,-500.0,0.00022477,2]
[336904803,1725238258918,-1752.68,0.00022477,2]
[336904806,1725238258929,-500.0,0.00022477,2]
[336904808,1725238258939,-543.54,0.00022477,2]
[336904810,1725238258948,-500.0,0.00022477,2]
[336904811,1725238258958,-500.0,0.00022477,2]
[336904812,1725238258967,-1679.52,0.00022477,2]
[336904813,1725238258976,-816.81,0.00022477,2]
[336904814,1725238258992,-1299.41,0.00022477,2]
[336904815,1725238259002,-1326.56,0.00022477,2]
[336904816,1725238259011,-500.0,0.00022477,2]
[336904817,1725238259020,-500.0,0.00022477,2]
[336904818,1725238259029,-500.0,0.00022477,2]
[336904819,1725238259039,-1387.77,0.00022477,2]
[336904820,1725238259048,-500.0,0.00022477,2]
[336904821,1725238259058,-500.0,0.00022477,2]
[336904822,1725238259067,-489.0964318,0.0002248,2]
[336904823,1725238259077,-10653.6603615,0.0002248,2]
[336904824,1725238259086,-2889.6054867,0.0002248,2]
[336904825,1725238259095,-311.8907145,0.0002248,2]
[336904826,1725238259105,-11404.1649102,0.0002248,2]
[336904827,1725238259114,-3348.9821448,0.0002248,2]
[336904828,1725238259123,-751.4205405,0.00022482,2]
[336904829,1725238259133,-11756.2142388,0.00022482,2]
[336904830,1725238259142,-1104.6846035,0.00022484,2]
[336904831,1725238259151,-1104.6846035,0.00022485,2]
[336904832,1725238259161,-229.99869724,0.00022486,2]
[336904833,1725238259170,-182.37407286,0.00022487,2]
[336904834,1725238259179,-42562.08533672,0.00022487,2]
[336904835,1725238259188,-500.0,0.00022487,2]
[336904836,1725238259197,-500.0,0.00022487,2]
[336904837,1725238259207,-500.0,0.00022487,2]
[336904838,1725238259216,-500.0,0.00022487,2]
[336904839,1725238259226,-500.0,0.00022487,2]
[336904840,1725238259235,-500.0,0.00022487,2]
[336904841,1725238259245,-500.0,0.00022487,2]
[336904842,1725238259254,-500.0,0.00022487,2]
[336904843,1725238259263,-500.0,0.00022487,2]
[336904844,1725238259273,-500.0,0.00022487,2]
[336904845,1725238259282,-500.0,0.00022487,2]
[336904846,1725238259291,-177.19901105,0.00022487,2]
[336904847,1725238259301,-500.0,0.00022487,2]
[336904848,1725238259310,-500.0,0.00022487,2]
[336904849,1725238259320,-500.0,0.00022487,2]
[336904850,1725238259329,-267.29980483,0.00022487,2]
[336904852,1725238259339,-500.0,0.00022487,2]
[336904853,1725238259348,-500.0,0.00022487,2]
[336904855,1725238259358,-500.0,0.00022487,2]
[336904857,1725238259367,-500.0,0.00022487,2]
[336904859,1725238259376,-500.0,0.00022487,2]
[336904861,1725238259386,-500.0,0.00022487,2]
[336904863,1725238259395,-500.0,0.00022487,2]
[336904865,1725238259404,-500.0,0.00022487,2]
[336904867,1725238259414,-500.0,0.00022487,2]
[336904869,1725238259423,-500.0,0.00022487,2]
[336904871,1725238259433,-500.0,0.00022487,2]
[336904873,1725238259442,-500.0,0.00022487,2]
[336904875,1725238259451,-500.0,0.00022487,2]
[336904877,1725238259461,-500.0,0.00022487,2]
[336904878,1725238259470,-500.0,0.00022487,2]
[336904880,1725238259479,-500.0,0.00022487,2]
[336904882,1725238259489,-500.0,0.00022487,2]
[336904884,1725238259498,-500.0,0.00022487,2]
[336904886,1725238259507,-500.0,0.00022487,2]
[336904888,1725238259517,-371.92557109,0.00022487,2]
[336904890,1725238259526,-848.57,0.00022487,2]
[336904892,1725238259535,-848.57,0.00022487,2]
[336904894,1725238259545,-848.57,0.00022487,2]
[336904896,1725238259556,-500.0,0.00022487,2]
[336904899,1725238259567,-500.0,0.00022487,2]
[336904901,1725238259576,-500.0,0.00022487,2]
[336904902,1725238259586,-500.0,0.00022487,2]
[336904904,1725238259595,-500.0,0.00022487,2]
[336904906,1725238259605,-500.0,0.00022487,2]
[336904908,1725238259617,-500.0,0.00022487,2]
[336904910,1725238259628,-500.0,0.00022487,2]
[336904912,1725238259636,-439.88602786,0.00022487,2]
[336904914,1725238259646,-500.0,0.00022487,2]
[336904916,1725238259656,-500.0,0.00022487,2]
[336904917,1725238259665,-500.0,0.00022487,2]
[336904919,1725238259674,-500.0,0.00022487,2]
[336904921,1725238259683,-500.0,0.00022487,2]
[336904923,1725238259693,-500.0,0.00022487,2]
[336904925,1725238259702,-500.0,0.00022487,2]
[336904927,1725238259711,-500.0,0.00022487,2]
[336904929,1725238259719,-573.67254604,0.00022487,2]
[336904931,1725238259729,-580.34,0.00022487,2]
[336904933,1725238259737,-580.34,0.00022487,2]
[336904934,1725238259747,-580.34,0.00022487,2]
[336904936,1725238259756,-500.0,0.00022487,2]
[336904938,1725238259766,-500.0,0.00022487,2]
[336904940,1725238259775,-444.11981179,0.00022487,2]
[336904942,1725238259784,-1201.04,0.00022487,2]
[336904944,1725238259793,-1201.04,0.00022487,2]
[336904945,1725238259802,-1201.04,0.00022487,2]
[336904947,1725238259811,-500.0,0.00022487,2]
[336904949,1725238259820,-500.0,0.00022487,2]
[336904951,1725238259829,-500.0,0.00022487,2]
[336904953,1725238259840,-1409.23,0.00022487,2]
[336904955,1725238259849,-1409.23,0.00022487,2]
[336904957,1725238259858,-1409.23,0.00022487,2]
[336904959,1725238259867,-500.0,0.00022487,2]
[336904961,1725238259876,-500.0,0.00022487,2]
[336904963,1725238259886,-500.0,0.00022487,2]
[336904965,1725238259895,-500.0,0.00022487,2]
[336904967,1725238259905,-500.0,0.00022487,2]
[336904969,1725238259914,-500.0,0.00022487,2]
[336904971,1725238259923,-630.9,0.00022487,2]
[336904973,1725238259932,-630.9,0.00022487,2]
[336904975,1725238259941,-630.9,0.00022487,2]
[336904976,1725238259950,-500.0,0.00022487,2]
[336904978,1725238259959,-240.40430831,0.00022487,2]
[336904980,1725238259968,-523.43,0.00022487,2]
[336904982,1725238259977,-523.43,0.00022487,2]
[336904984,1725238259987,-523.43,0.00022487,2]
[336904986,1725238259996,-500.0,0.00022487,2]
[336904988,1725238260006,-500.0,0.00022487,2]
[336904990,1725238260016,-500.0,0.00022487,2]
[336904992,1725238260026,-500.0,0.00022487,2]
[336904994,1725238260035,-500.0,0.00022487,2]
[336904995,1725238260045,-500.0,0.00022487,2]
[336904996,1725238260055,-500.0,0.00022487,2]
[336904998,1725238260064,-500.0,0.00022487,2]
[336905000,1725238260074,-500.0,0.00022487,2]
[336905002,1725238260083,-500.0,0.00022487,2]
[336905004,1725238260093,-500.0,0.00022487,2]
[336905006,1725238260103,-500.0,0.00022487,2]
[336905008,1725238260112,-660.1,0.00022487,2]
[336905010,1725238260121,-500.0,0.00022487,2]
[336905012,1725238260132,-500.0,0.00022487,2]
[336905014,1725238260141,-660.1,0.00022487,2]
[336905016,1725238260151,-660.1,0.00022487,2]
[336905018,1725238260160,-500.0,0.00022487,2]
[336905020,1725238260169,-504.65,0.00022487,2]
[336905022,1725238260178,-504.65,0.00022487,2]
[336905024,1725238260188,-504.65,0.00022487,2]
[336905025,1725238260197,-565.85,0.00022487,2]
[336905027,1725238260207,-565.85,0.00022487,2]
[336905029,1725238260217,-565.85,0.00022487,2]
[336905031,1725238260227,-500.0,0.00022487,2]
[336905033,1725238260236,-500.0,0.00022487,2]
[336905035,1725238260246,-500.0,0.00022487,2]
[336905037,1725238260255,-500.0,0.00022487,2]
[336905039,1725238260265,-500.0,0.00022487,2]
[336905041,1725238260274,-500.0,0.00022487,2]
[336905043,1725238260284,-500.0,0.00022487,2]
[336905045,1725238260293,-500.0,0.00022487,2]
[336905047,1725238260302,-567.25184748,0.00022487,2]
[336905048,1725238260312,-500.0,0.00022487,2]
[336905049,1725238260321,-500.0,0.00022487,2]
[336905050,1725238260331,-500.0,0.00022487,2]
[336905051,1725238260340,-500.0,0.00022487,2]
[336905052,1725238260350,-500.0,0.00022487,2]
[336905053,1725238260359,-500.0,0.00022487,2]
[336905054,1725238260370,-500.0,0.00022487,2]
[336905055,1725238260379,-500.0,0.00022487,2]
[336905056,1725238260389,-400.09074703,0.00022487,2]
[336905057,1725238260399,-500.0,0.00022487,2]
[336905058,1725238260408,-500.0,0.00022487,2]
[336905059,1725238260418,-500.0,0.00022487,2]
[336905060,1725238260428,-500.0,0.00022487,2]
[336905061,1725238260438,-500.0,0.00022487,2]
[336905062,1725238260447,-575.7394257,0.00022487,2]
[336905063,1725238260457,-945.93,0.00022487,2]
[336905064,1725238260467,-554.77,0.00022487,2]
[336905065,1725238260476,-945.93,0.00022487,2]
[336905066,1725238260487,-554.77,0.00022487,2]
[336905067,1725238260496,-945.93,0.00022487,2]
[336905068,1725238260506,-554.77,0.00022487,2]
[336905069,1725238260516,-500.0,0.00022487,2]
[336905070,1725238260525,-500.0,0.00022487,2]
[336905071,1725238260535,-500.0,0.00022487,2]
[336905072,1725238260545,-1927.8,0.00022487,2]
[336905073,1725238260554,-500.0,0.00022487,2]
[336905074,1725238260564,-1927.8,0.00022487,2]
[336905075,1725238260573,-639.73948178,0.00022487,2]
[336905076,1725238260584,-500.0,0.00022487,2]
[336905077,1725238260594,-1927.8,0.00022487,2]
[336905078,1725238260604,-500.0,0.00022487,2]
[336905079,1725238260617,-500.0,0.00022487,2]
[336905080,1725238260628,-351.20369234,0.00022487,2]
[336905081,1725238260637,-500.0,0.00022487,2]
[336905082,1725238260648,-500.0,0.00022487,2]
[336905083,1725238260658,-500.0,0.00022487,2]
[336905084,1725238260668,-1058.15,0.00022487,2]
[336905085,1725238260677,-1058.15,0.00022487,2]
[336905086,1725238260689,-1160.29,0.00022487,2]
[336905087,1725238260698,-1058.15,0.00022487,2]
[336905088,1725238260708,-1160.29,0.00022487,2]
[336905089,1725238260717,-1160.29,0.00022487,2]
[336905090,1725238260726,-1000.0,0.00022487,2]
[336905091,1725238260736,-500.0,0.00022487,2]
[336905092,1725238260745,-1000.0,0.00022487,2]
[336905093,1725238260754,-500.0,0.00022487,2]
[336905094,1725238260764,-1000.0,0.00022487,2]
[336905095,1725238260774,-500.0,0.00022487,2]
[336905096,1725238260783,-539.49,0.00022487,2]
[336905097,1725238260793,-539.49,0.00022487,2]
[336905098,1725238260803,-539.49,0.00022487,2]
[336905099,1725238260812,-520.33,0.00022487,2]
[336905100,1725238260822,-520.33,0.00022487,2]
[336905101,1725238260832,-520.33,0.00022487,2]
[336905102,1725238260842,-500.0,0.00022487,2]
[336905103,1725238260852,-500.0,0.00022487,2]
[336905104,1725238260862,-500.0,0.00022487,2]
[336905105,1725238260873,-500.0,0.00022487,2]
[336905106,1725238260884,-500.0,0.00022487,2]
[336905107,1725238260894,-500.0,0.00022487,2]
[336905108,1725238260903,-500.0,0.00022487,2]
[336905109,1725238260913,-500.0,0.00022487,2]
[336905110,1725238260923,-500.0,0.00022487,2]
[336905111,1725238260933,-500.0,0.00022487,2]
[336905113,1725238260943,-500.0,0.00022487,2]
[336905115,1725238260952,-500.0,0.00022487,2]
[336905117,1725238260962,-500.0,0.00022487,2]
[336905119,1725238260972,-511.3,0.00022487,2]
[336905121,1725238260982,-500.0,0.00022487,2]
[336905123,1725238260995,-500.0,0.00022487,2]
[336905125,1725238261005,-511.3,0.00022487,2]
[336905127,1725238261015,-1376.88,0.00022487,2]
[336905129,1725238261024,-511.3,0.00022487,2]
[336905131,1725238261033,-1376.88,0.00022487,2]
[336905132,1725238261043,-1376.88,0.00022487,2]
[336905133,1725238261053,-500.0,0.00022487,2]
[336905134,1725238261063,-500.0,0.00022487,2]
[336905135,1725238261072,-500.0,0.00022487,2]
[336905136,1725238261082,-500.0,0.00022487,2]
[336905137,1725238261092,-500.0,0.00022487,2]
[336905138,1725238261102,-515.44379132,0.00022487,2]
[336905139,1725238261113,-500.0,0.00022487,2]
[336905140,1725238261122,-500.0,0.00022487,2]
[336905141,1725238261132,-500.0,0.00022487,2]
[336905142,1725238261142,-500.0,0.00022487,2]
[336905143,1725238261152,-500.0,0.00022487,2]
[336905144,1725238261161,-500.0,0.00022487,2]